Workbook

Sheet Документ (1)
G1: УТВЕРЖДЕНО
G2: Начальник Финансового управления администрации города Фокино
G3: _______________________ Шеремето А.Т.
G4: Приказ № 82 от "20" декабря 2013 г.
A5: АНАЛИЗ ИСПОЛНЕНИЯ СВОДНОЙ БЮДЖЕТНОЙ РОСПИСИ БЮДЖЕТА ГОРОДСКОГО ОКРУГА "ГОРОД ФОКИНО" (РАСХОДЫ) на 01.03.2014г.
G6: руб.
A7: Документ, учреждение | B7: Вед. | C7: Разд. | D7: Ц.ст. | E7: Расх. | F7: Эк.класс. | G7: Утверждено на 2014 год | H7: Исполнено на 01.03.2014г. | I7: % исполнения
A8: Совет народных депутатов города Фокино | B8: 001 | C8: 0000 | D8: 0000000 | E8: 000 | F8: 000 | G8: =G9 -> 1628911 | H8: =H9 -> 148219.44 | I8: =H8/G8*100 -> 9.099296401
A9: ОБЩЕГОСУДАРСТВЕННЫЕ ВОПРОСЫ | B9: 001 | C9: 0100 | D9: 0000000 | E9: 000 | F9: 000 | G9: =G10 -> 1628911 | H9: =H10 -> 148219.44 | I9: =H9/G9*100 -> 9.099296401
A10: Функционирование законодательных (представительных) органов государственной власти и представительных органов муниципальных образований | B10: 001 | C10: 0103 | D10: 0000000 | E10: 000 | F10: 000 | G10: =G11+G15 -> 1628911 | H10: =H11+H15 -> 148219.44 | I10: 9.099296401
A11: Обеспечение деятельности главы законодательного (представительного) органа муниципального образования | B11: 001 | C11: 0103 | D11: 7001004 | E11: 000 | F11: 000 | G11: =G12 -> 928413 | H11: =H12 -> 87231.3 | I11: 9.395743058
A12: Расходы на выплаты персоналу государственных (муниципальных) органов | B12: 001 | C12: 0103 | D12: 7001004 | E12: 120 | F12: 000 | G12: =G13+G14 -> 928413 | H12: =H13+H14 -> 87231.3 | I12: 9.395743058
A13: Заработная плата | B13: 001 | C13: 0103 | D13: 7001004 | E13: 120 | F13: 211 | G13: 713066 | H13: 70934.3 | I13: 9.947788844
A14: Начисления на выплаты по оплате труда | B14: 001 | C14: 0103 | D14: 7001004 | E14: 120 | F14: 213 | G14: 215347 | H14: 16297 | I14: 7.567785945
A15: Обеспечение деятельности законодательного (представительного) органа муниципального образования | B15: 001 | C15: 0103 | D15: 7001005 | E15: 000 | F15: 000 | G15: =G16+G19+G23 -> 700498 | H15: =H16+H19+H23 -> 60988.14 | I15: 8.706397449
A16: Расходы на выплаты персоналу государственных (муниципальных) органов | B16: 001 | C16: 0103 | D16: 7001005 | E16: 120 | F16: 000 | G16: =G17+G18 -> 512000 | H16: =H17+H18 -> 43285.41 | I16: 8.454181641
A17: Заработная плата | B17: 001 | C17: 0103 | D17: 7001005 | E17: 120 | F17: 211 | G17: 392000 | H17: 32496.41 | I17: 8.28990051
A18: Начисления на выплаты по оплате труда | B18: 001 | C18: 0103 | D18: 7001005 | E18: 120 | F18: 213 | G18: 120000 | H18: 10789 | I18: 8.990833333
A19: Иные закупки товаров, работ и услуг для государственных(муниципальных) нужд | B19: 001 | C19: 0103 | D19: 7001005 | E19: 240 | F19: 000 | G19: =G20+G21+G22 -> 188298 | H19: =H20+H21+H22 -> 17686 | I19: 9.392558604
A20: Услуги связи | B20: 001 | C20: 0103 | D20: 7001005 | E20: 240 | F20: 221 | G20: 12000 | H20: 2000 | I20: 16.66666667
A21: Прочие работы, услуги | B21: 001 | C21: 0103 | D21: 7001005 | E21: 240 | F21: 226 | G21: 150298 | H21: 10686 | I21: 7.109875048
A22: Увеличение стоимости материальных запасов | B22: 001 | C22: 0103 | D22: 7001005 | E22: 240 | F22: 340 | G22: 26000 | H22: 5000 | I22: 19.23076923
A23: Уплата прочих налогов, сборов и иных платежей | B23: 001 | C23: 0103 | D23: 7001005 | E23: 852 | F23: 000 | G23: =G24 -> 200 | H23: =H24 -> 16.73 | I23: 8.365
A24: Прочие расходы | B24: 001 | C24: 0103 | D24: 7001005 | E24: 852 | F24: 290 | G24: 200 | H24: 16.73 | I24: 8.365
A25: Администрация города Фокино | B25: 002 | C25: 0000 | D25: 0000000 | E25: 000 | F25: 000 | G25: =G26+G75+G81+G105+G135+G157+G165+G206+G211 -> 150701344 | H25: =H26+H75+H81+H105+H135+H157+H165+H206+H211 -> 18534191.07 | I25: 12.29862361
A26: ОБЩЕГОСУДАРСТВЕННЫЕ ВОПРОСЫ | B26: 002 | C26: 0100 | D26: 0000000 | E26: 000 | F26: 000 | G26: =G27+G49+G53+G57 -> 11270237 | H26: =H27+H49+H53+H57 -> 1680470.65 | I26: 14.91069487
A27: Функционирование Правительства Российской Федерации, высших исполнительных органов государственной власти субъектов Российской Федерации, местных администраций | B27: 002 | C27: 0104 | D27: 0000000 | E27: 000 | F27: 000 | G27: =G28+G32 -> 9821037 | H27: =H28+H32 -> 1480864.46 | I27: 15.07849385
A28: Обеспечение деятельности главы исполнительно-распорядительного органа муниципального образования | B28: 002 | C28: 0104 | D28: 0211001 | E28: 000 | F28: 000 | G28: =G29 -> 998029 | H28: =H29 -> 102457.44 | I28: 10.26597824
A29: Расходы на выплаты персоналу государственных (муниципальных) органов | B29: 002 | C29: 0104 | D29: 0211001 | E29: 120 | F29: 000 | G29: =G30+G31 -> 998029 | H29: =H30+H31 -> 102457.44 | I29: 10.26597824
A30: Заработная плата | B30: 002 | C30: 0104 | D30: 0211001 | E30: 120 | F30: 211 | G30: 766536 | H30: 73213.31 | I30: 9.551190029
A31: Начисления на выплаты по оплате труда | B31: 002 | C31: 0104 | D31: 0211001 | E31: 120 | F31: 213 | G31: 231493 | H31: 29244.13 | I31: 12.63283555
A32: Руководство и управление в сфере установленных функций органов местного самоуправления | B32: 002 | C32: 0104 | D32: 0211010 | E32: 000 | F32: 000 | G32: =G33+G37+G45+G47 -> 8823008 | H32: =H33+H37+H45+H47 -> 1378407.02 | I32: 15.62286943
A33: Расходы на выплаты персоналу государственных (муниципальных) органов | B33: 002 | C33: 0104 | D33: 0211010 | E33: 120 | F33: 000 | G33: =G34+G35+G36 -> 7158690 | H33: =H34+H35+H36 -> 964284 | I33: 13.47011814
A34: Заработная плата | B34: 002 | C34: 0104 | D34: 0211010 | E34: 120 | F34: 211 | G34: 5495000 | H34: 691987.7 | I34: 12.59304277
A35: Прочие выплаты | B35: 002 | C35: 0104 | D35: 0211010 | E35: 120 | F35: 212 | G35: 4200 | H35: 250 | I35: 5.952380952
A36: Начисления на выплаты по оплате труда | B36: 002 | C36: 0104 | D36: 0211010 | E36: 120 | F36: 213 | G36: 1659490 | H36: 272046.3 | I36: 16.39336784
A37: Иные закупки товаров, работ и услуг для государственных(муниципальных) нужд | B37: 002 | C37: 0104 | D37: 0211010 | E37: 240 | F37: 000 | G37: =G38+G39+G40+G41+G42+G44+G43 -> 1544418 | H37: =H38+H39+H40+H41+H42+H44+H43 -> 361708.02 | I37: 23.42034475
A38: Услуги связи | B38: 002 | C38: 0104 | D38: 0211010 | E38: 240 | F38: 221 | G38: 231000 | H38: 20751.07 | I38: 8.983147186
A39: Коммунальные услуги | B39: 002 | C39: 0104 | D39: 0211010 | E39: 240 | F39: 223 | G39: 832000 | H39: 241866.45 | I39: 29.07048678
A40: Работы, услуги по содержанию имущества | B40: 002 | C40: 0104 | D40: 0211010 | E40: 240 | F40: 225 | G40: 90000 | H40: 17566 | I40: 19.51777778
A41: Прочие работы, услуги | B41: 002 | C41: 0104 | D41: 0211010 | E41: 240 | F41: 226 | G41: 110000 | H41: 10371.1 | I41: 9.428272727
A42: Прочие расходы | B42: 002 | C42: 0104 | D42: 0211010 | E42: 240 | F42: 290 | G42: 3517 | H42: 3516.4 | I42: 99.98294001
A43: Увеличение стоимости основных средств | B43: 002 | C43: 0104 | D43: 0211010 | E43: 240 | F43: 310 | G43: 31694 | H43: 31694 | I43: 100
A44: Увеличение стоимости материальных запасов | B44: 002 | C44: 0104 | D44: 0211010 | E44: 240 | F44: 340 | G44: =277901-31694 -> 246207 | H44: 35943 | I44: 14.59869135
A45: Уплата налога на имущество организаций и земельного налога | B45: 002 | C45: 0104 | D45: 0211010 | E45: 851 | F45: 000 | G45: =G46 -> 84700 | H45: =H46 -> 49125 | I45: 57.99881936
A46: Прочие расходы | B46: 002 | C46: 0104 | D46: 0211010 | E46: 851 | F46: 290 | G46: 84700 | H46: 49125 | I46: 57.99881936
A47: Уплата прочих налогов, сборов и иных платежей | B47: 002 | C47: 0104 | D47: 0211010 | E47: 852 | F47: 000 | G47: =G48 -> 35200 | H47: =H48 -> 3290 | I47: 9.346590909
A48: Прочие расходы | B48: 002 | C48: 0104 | D48: 0211010 | E48: 852 | F48: 290 | G48: 35200 | H48: 3290 | I48: 9.346590909
A49: Обеспечение проведения выборов и референдумов | B49: 002 | C49: 0107 | D49: 0000000 | E49: 000 | F49: 000 | G49: =G50 -> 100000 | H49: 0 | I49: 0
A50: Организация и проведение выборов и референдумов | B50: 002 | C50: 0107 | D50: 7001011 | E50: 000 | F50: 000 | G50: 100000 | H50: 0 | I50: 0
A51: Специальные расходы | B51: 002 | C51: 0107 | D51: 7001011 | E51: 880 | F51: 000 | G51: 100000 | H51: 0 | I51: 0
A52: Прочие расходы | B52: 002 | C52: 0107 | D52: 7001011 | E52: 880 | F52: 290 | G52: 100000 | H52: 0 | I52: 0
A53: Резервные фонды | B53: 002 | C53: 0111 | D53: 0000000 | E53: 000 | F53: 000 | G53: =G54 -> 750000 | H53: 0 | I53: 0
A54: Резервные фонды местных администраций | B54: 002 | C54: 0111 | D54: 7001012 | E54: 000 | F54: 000 | G54: 750000 | H54: 0 | I54: 0
A55: Резервные средства | B55: 002 | C55: 0111 | D55: 7001012 | E55: 870 | F55: 000 | G55: 750000 | H55: 0 | I55: 0
A56: Прочие расходы | B56: 002 | C56: 0111 | D56: 7001012 | E56: 870 | F56: 290 | G56: 750000 | H56: 0 | I56: 0
A57: Другие общегосударственные вопросы | B57: 002 | C57: 0113 | D57: 0000000 | E57: 000 | F57: 000 | G57: =G58+G65+G72+G69 -> 599200 | H57: =H58+H65+H72+H69 -> 199606.19 | I57: 33.31211449
A58: Обеспечение деятельности по профилактике безнадзорности и правонарушений несовершеннолетних, административных комиссий и определения перечня должностных лиц органов местного самоуправления, уполномоченных составлять протоколы об административных правонарушениях | B58: 002 | C58: 0113 | D58: 0211202 | E58: 000 | F58: 000 | G58: =G59+G62 -> 329200 | H58: =H59+H62 -> 24523.53 | I58: 7.449431956
A59: Расходы на выплаты персоналу государственных (муниципальных) органов | B59: 002 | C59: 0113 | D59: 0211202 | E59: 120 | F59: 000 | G59: =G60+G61 -> 285399 | H59: =H60+H61 -> 23884.26 | I59: 8.368725889
A60: Заработная плата | B60: 002 | C60: 0113 | D60: 0211202 | E60: 120 | F60: 211 | G60: 219200 | H60: 17171.15 | I60: 7.833553832
A61: Начисления на выплаты по оплате труда | B61: 002 | C61: 0113 | D61: 0211202 | E61: 120 | F61: 213 | G61: 66199 | H61: 6713.11 | I61: 10.14080273
A62: Иные закупки товаров, работ и услуг для государственных(муниципальных) нужд | B62: 002 | C62: 0113 | D62: 0211202 | E62: 240 | F62: 000 | G62: =G63+G64 -> 43801 | H62: =H63+H64 -> 639.27 | I62: 1.459487226
A63: Услуги связи | B63: 002 | C63: 0113 | D63: 0211202 | E63: 240 | F63: 221 | G63: 15000 | H63: 639.27 | I63: 4.2618
A64: Увеличение стоимости материальных запасов | B64: 002 | C64: 0113 | D64: 0211202 | E64: 240 | F64: 340 | G64: 28801 | H64: 0 | I64: 0
A65: Возмещение морального вреда по решению суда | B65: 002 | C65: 0113 | D65: 0218008 | E65: 000 | F65: 000 | G65: =G66 -> 110000 | H65: =H66 -> 107047.47 | I65: 97.31588182
A66: Исполнение судебных актов и мировых соглашений | B66: 002 | C66: 0113 | D66: 0218008 | E66: 830 | F66: 000 | G66: =G67+G68 -> 110000 | H66: =H67+H68 -> 107047.47 | I66: 97.31588182
A67: Работы, услуги по содержанию имущества | B67: 002 | C67: 0113 | D67: 0218008 | E67: 830 | F67: 225 | G67: 96654 | H67: 96654 | I67: 100
A68: Прочие расходы | B68: 002 | C68: 0113 | D68: 0218008 | E68: 830 | F68: 290 | G68: 13346 | H68: 10393.47 | I68: 77.87704181
A69: Судебная экспертиза | B69: 002 | C69: 0113 | D69: 0218009 | E69: 000 | F69: 000 | G69: =G70 -> 60000 | H69: =H70 -> 60000 | I69: 100
A70: Уплата прочих налогов, сборов и иных платежей | B70: 002 | C70: 0113 | D70: 0218009 | E70: 852 | F70: 000 | G70: =G71 -> 60000 | H70: =H71 -> 60000 | I70: 100
A71: Прочие расходы | B71: 002 | C71: 0113 | D71: 0218009 | E71: 852 | F71: 290 | G71: 60000 | H71: 60000 | I71: 100
A72: Мероприятия в сфере информационного обеспечения | B72: 002 | C72: 0113 | D72: 0228002 | E72: 000 | F72: 000 | G72: =G73 -> 100000 | H72: =H73 -> 8035.19 | I72: 8.03519
A73: Иные закупки товаров, работ и услуг для государственных(муниципальных) нужд | B73: 002 | C73: 0113 | D73: 0228002 | E73: 240 | F73: 000 | G73: =G74 -> 100000 | H73: =H74 -> 8035.19 | I73: =H73/G73*100 -> 8.03519
A74: Работы, услуги по содержанию имущества | B74: 002 | C74: 0113 | D74: 0228002 | E74: 240 | F74: 225 | G74: 100000 | H74: 8035.19 | I74: 8.03519
A75: НАЦИОНАЛЬНАЯ ОБОРОНА | B75: 002 | C75: 0200 | D75: 0000000 | E75: 000 | F75: 000 | G75: =G76 -> 393837 | H75: 0 | I75: 0
A76: Мобилизационная и вневойсковая подготовка | B76: 002 | C76: 0203 | D76: 0000000 | E76: 000 | F76: 000 | G76: 393837 | H76: 0 | I76: 0
A77: Осуществление первичного воинского учета на территориях, где отсутствуют военные комиссариаты | B77: 002 | C77: 0203 | D77: 0211206 | E77: 000 | F77: 000 | G77: 393837 | H77: 0 | I77: 0
A78: Расходы на выплаты персоналу государственных (муниципальных) органов | B78: 002 | C78: 0203 | D78: 0211206 | E78: 120 | F78: 000 | G78: =G79+G80 -> 393837 | H78: =H79+H80 -> 0 | I78: 0
A79: Заработная плата | B79: 002 | C79: 0203 | D79: 0211206 | E79: 120 | F79: 211 | G79: 302486 | H79: 0 | I79: 0
A80: Начисления на выплаты по оплате труда | B80: 002 | C80: 0203 | D80: 0211206 | E80: 120 | F80: 213 | G80: 91351 | H80: 0 | I80: 0
A81: НАЦИОНАЛЬНАЯ ЭКОНОМИКА | B81: 002 | C81: 0400 | D81: 0000000 | E81: 000 | F81: 000 | G81: =G82+G86+G90+G97 -> 15556251 | H81: =H82+H86+H90+H97 -> 317736.71 | I81: 2.042501821
A82: Общеэкономические вопросы | B82: 002 | C82: 0401 | D82: 0000000 | E82: 000 | F82: 000 | G82: =G83 -> 22000 | H82: 0 | I82: 0
A83: Мероприятия по профилактике безнадзорности и правонарушений несовершеннолетних | B83: 002 | C83: 0401 | D83: 0278004 | E83: 000 | F83: 000 | G83: 22000 | H83: 0 | I83: 0
A84: Субсидии бюджетным учреждениям на иные цели | B84: 002 | C84: 0401 | D84: 0278004 | E84: 612 | F84: 000 | G84: 22000 | H84: 0 | I84: 0
A85: Безвозмездные перечисления государственным и муниципальным организациям | B85: 002 | C85: 0401 | D85: 0278004 | E85: 612 | F85: 241 | G85: 22000 | H85: 0 | I85: 0
A86: Транспорт | B86: 002 | C86: 0408 | D86: 0000000 | E86: 000 | F86: 000 | G86: =G87 -> 900000 | H86: 0 | I86: 0
A87: Компенсация транспортным организациям части потерь в доходах, возникающих в результате государственного регулирования тарифов на перевозку пассажиров автомобильным пассажирским транспортом в пригородном сообщении | B87: 002 | C87: 0408 | D87: 0211842 | E87: 000 | F87: 000 | G87: 900000 | H87: 0 | I87: 0
A88: Субсидии юридическим лицам (кроме некомерческих организаций), индивидуальным предпринимателям и физическим лицам | B88: 002 | C88: 0408 | D88: 0211842 | E88: 810 | F88: 000 | G88: 900000 | H88: 0 | I88: 0
A89: Безвозмездные перечисления организациям , за исключением государственных и муниципальных | B89: 002 | C89: 0408 | D89: 0211842 | E89: 810 | F89: 242 | G89: =960000-60000 -> 900000 | H89: 0 | I89: 0
A90: Дорожное хозяйство (дорожные фонды) | B90: 002 | C90: 0409 | D90: 0000000 | E90: 000 | F90: 000 | G90: =G91+G94 -> 14466751 | H90: =H91+H94 -> 298186 | I90: 2.061181533
A91: Обеспечение сохранности автомобильных дорог местного значения и условий безопасности движения по ним | B91: 002 | C91: 0409 | D91: 0237201 | E91: 000 | F91: 000 | G91: =G92 -> 5171651 | H91: 298186 | I91: 5.765779632
A92: Иные закупки товаров, работ и услуг для государственных(муниципальных) нужд | B92: 002 | C92: 0409 | D92: 0237201 | E92: 240 | F92: 000 | G92: 5171651 | H92: 298186 | I92: 5.765779632
A93: Работы, услуги по содержанию имущества | B93: 002 | C93: 0409 | D93: 0237201 | E93: 240 | F93: 225 | G93: 5171651 | H93: 298186 | I93: 5.765779632
A94: Строительство, архитектура и дорожное хозяйство Брянской области(2014-220гг) ПП"Автомобильные дороги" (2014-2020гг) Обеспечение сохранности автомобильных дорог местного значения и условий безопасности движения по ним | B94: 002 | C94: 0409 | D94: 0231617 | E94: 000 | F94: 000 | G94: =G95 -> 9295100 | H94: =H95 -> 0 | I94: 0
A95: Иные закупки товаров, работ и услуг для государственных(муниципальных) нужд | B95: 002 | C95: 0409 | D95: 0231617 | E95: 240 | F95: 000 | G95: =G96 -> 9295100 | H95: =H96 -> 0 | I95: 0
A96: Работы, услуги по содержанию имущества | B96: 002 | C96: 0409 | D96: 0231617 | E96: 240 | F96: 225 | G96: 9295100 | H96: 0 | I96: 0
A97: Другие вопросы в области национальной экономики | B97: 002 | C97: 0412 | D97: 0000000 | E97: 000 | F97: 000 | G97: =G98+G102 -> 167500 | H97: =H98+H102 -> 19550.71 | I97: 11.67206567
A98: Организация и осуществление деятельности в сфере охраны труда | B98: 002 | C98: 0412 | D98: 0211790 | E98: 000 | F98: 000 | G98: =G99 -> 164500 | H98: =H99 -> 19550.71 | I98: 11.88493009
A99: Расходы на выплаты персоналу государственных (муниципальных) органов | B99: 002 | C99: 0412 | D99: 0211790 | E99: 120 | F99: 000 | G99: =G100+G101 -> 164500 | H99: =H100+H101 -> 19550.71 | I99: 11.88493009
A100: Заработная плата | B100: 002 | C100: 0412 | D100: 0211790 | E100: 120 | F100: 211 | G100: 126344 | H100: 17328.6 | I100: 13.71541189
A101: Начисления на выплаты по оплате труда | B101: 002 | C101: 0412 | D101: 0211790 | E101: 120 | F101: 213 | G101: 38156 | H101: 2222.11 | I101: 5.823749869
A102: Поддержка малого и среднего предпринимательства | B102: 002 | C102: 0412 | D102: 0211863 | E102: 000 | F102: 000 | G102: =G103 -> 3000 | H102: =H103 -> 0 | I102: 0
A103: Иные закупки товаров, работ и услуг для государственных(муниципальных) нужд | B103: 002 | C103: 0412 | D103: 0211863 | E103: 240 | F103: 000 | G103: =G104 -> 3000 | H103: =H104 -> 0 | I103: 0
A104: Увеличение стоимости материальных запасов | B104: 002 | C104: 0412 | D104: 0211863 | E104: 240 | F104: 340 | G104: 3000 | H104: 0 | I104: 0
A105: ЖИЛИЩНО-КОММУНАЛЬНОЕ ХОЗЯЙСТВО | B105: 002 | C105: 0500 | D105: 0000000 | E105: 000 | F105: 000 | G105: =G106+G121 -> 5874900 | H105: =H106+H121 -> 799745.41 | I105: 13.61291954
A106: Коммунальное хозяйство | B106: 002 | C106: 0502 | D106: 0000000 | E106: 000 | F106: 000 | G106: =G107+G112+G115+G118 -> 1784000 | H106: =H107+H112+H115+H118 -> 183583 | I106: 10.29052691
A107: Повышение энергетической эффективности и обеспечение энергосбережения | B107: 002 | C107: 0502 | D107: 0241128 | E107: 000 | F107: 000 | G107: =G108+G110 -> 390000 | H107: =H108+H110 -> 18583 | I107: 4.764871795
A108: Иные закупки товаров, работ и услуг для государственных(муниципальных) нужд | B108: 002 | C108: 0502 | D108: 0241128 | E108: 240 | F108: 000 | G108: =G109 -> 371417 | H108: =H109 -> 0 | I108: 0
A109: Работы, услуги по содержанию имущества | B109: 002 | C109: 0502 | D109: 0241128 | E109: 240 | F109: 225 | G109: =390000-18583 -> 371417 | H109: 0 | I109: 0
A110: Бюджетные инвестиции в объекты капитального строительства государственной (муниципальной) собственности | B110: 002 | C110: 0502 | D110: 0241128 | E110: 414 | F110: 000 | G110: =G111 -> 18583 | H110: =H111 -> 18583 | I110: 100
A111: Увеличение стоимости основных средств | B111: 002 | C111: 0502 | D111: 0241128 | E111: 414 | F111: 310 | G111: 18583 | H111: 18583 | I111: 100
A112: Строительство, архитектура и дорожное хозяйство Брянской области (2014-2020 годы) ПП "Развитие социальной и инженерной инфраструктуры Брянскрй области" Софинансирование объектов капитальных вложений муниципальной собственности | B112: 002 | C112: 0502 | D112: 0251127 | E112: 000 | F112: 000 | G112: =G113 -> 500000 | H112: =H113 -> 0 | I112: 0
A113: Бюджетные инвестиции в объекты капитального строительства государственной (муниципальной) собственности | B113: 002 | C113: 0502 | D113: 0251127 | E113: 414 | F113: 000 | G113: =G114 -> 500000 | H113: =H114 -> 0 | I113: 0
A114: Увеличение стоимости основных средств | B114: 002 | C114: 0502 | D114: 0251127 | E114: 414 | F114: 310 | G114: 500000 | H114: 0 | I114: 0
A115: Прочие мероприятия по благоустройству | B115: 002 | C115: 0502 | D115: 0257005 | E115: 000 | F115: 000 | G115: =G116 -> 0 | H115: =H116 -> 0
A116: Иные закупки товаров, работ и услуг для государственных(муниципальных) нужд | B116: 002 | C116: 0502 | D116: 0257005 | E116: 240 | F116: 000 | G116: =G117 -> 0 | H116: =H117 -> 0
A117: Работы, услуги по содержанию имущества | B117: 002 | C117: 0502 | D117: 0257005 | E117: 240 | F117: 225 | G117: 0 | H117: 0
A118: Мероприятия в области коммунального хозяйства | B118: 002 | C118: 0502 | D118: 0257009 | E118: 000 | F118: 000 | G118: =G119 -> 894000 | H118: =H119 -> 165000 | I118: 18.45637584
A119: Субсидии юридическим лицам (кроме некомерческих организаций), индивидуальным предпринимателям и физическим лицам | B119: 002 | C119: 0502 | D119: 0257009 | E119: 810 | F119: 000 | G119: =G120 -> 894000 | H119: =H120 -> 165000 | I119: 18.45637584
A120: Безвозмездные перечисления государственным и муниципальным организациям | B120: 002 | C120: 0502 | D120: 0257009 | E120: 810 | F120: 241 | G120: 894000 | H120: 165000 | I120: 18.45637584
A121: Благоустройство | B121: 002 | C121: 0503 | D121: 0000000 | E121: 000 | F121: 000 | G121: =G122+G126+G129+G132 -> 4090900 | H121: =H122+H126+H129+H132 -> 616162.41 | I121: 15.06178127
A122: Повышение энергетической эффективности и обеспечение энергосбережения | B122: 002 | C122: 0503 | D122: 0241128 | E122: 000 | F122: 000 | G122: =G123 -> 447900 | H122: =H123 -> 209476 | I122: 46.76847511
A123: Иные закупки товаров, работ и услуг для государственных(муниципальных) нужд | B123: 002 | C123: 0503 | D123: 0241128 | E123: 240 | F123: 000 | G123: =G124+G125 -> 447900 | H123: =H124+H125 -> 209476 | I123: 46.76847511
A124: Работы, услуги по содержанию имущества | B124: 002 | C124: 0503 | D124: 0241128 | E124: 240 | F124: 225 | G124: =447900-60133 -> 387767 | H124: 149343 | I124: 38.51359193
B125: 002 | C125: 0503 | D125: 0241128 | E125: 240 | F125: 226 | G125: 60133 | H125: 60133
A126: Уличное освещение | B126: 002 | C126: 0503 | D126: 0257001 | E126: 000 | F126: 000 | G126: =G127 -> 1933000 | H126: =H127 -> 371686.41 | I126: 19.22847439
A127: Иные закупки товаров, работ и услуг для государственных(муниципальных) нужд | B127: 002 | C127: 0503 | D127: 0257001 | E127: 240 | F127: 000 | G127: =G128 -> 1933000 | H127: =H128 -> 371686.41 | I127: 19.22847439
A128: Коммунальные услуги | B128: 002 | C128: 0503 | D128: 0257001 | E128: 240 | F128: 223 | G128: 1933000 | H128: 371686.41 | I128: 19.22847439
A129: Организация и содержание мест захоронения | B129: 002 | C129: 0503 | D129: 0257003 | E129: 000 | F129: 000 | G129: =G130 -> 210000 | H129: =H130 -> 35000 | I129: 16.66666667
A130: Субсидии юридическим лицам (кроме некомерческих организаций), индивидуальным предпринимателям и физическим лицам | B130: 002 | C130: 0503 | D130: 0257003 | E130: 810 | F130: 000 | G130: =G131 -> 210000 | H130: =H131 -> 35000 | I130: 16.66666667
A131: Безвозмездные перечисления государственным и муниципальным организациям | B131: 002 | C131: 0503 | D131: 0257003 | E131: 810 | F131: 241 | G131: 210000 | H131: 35000 | I131: 16.66666667
A132: Прочие мероприятия по благоустройству | B132: 002 | C132: 0503 | D132: 0257005 | E132: 000 | F132: 000 | G132: =G133 -> 1500000 | H132: =H133 -> 0 | I132: 0
A133: Иные закупки товаров, работ и услуг для государственных(муниципальных) нужд | B133: 002 | C133: 0503 | D133: 0257005 | E133: 240 | F133: 000 | G133: =G134 -> 1500000 | H133: =H134 -> 0 | I133: 0
A134: Работы, услуги по содержанию имущества | B134: 002 | C134: 0503 | D134: 0257005 | E134: 240 | F134: 225 | G134: 1500000 | H134: 0 | I134: 0
A135: ОБРАЗОВАНИЕ | B135: 002 | C135: 0700 | D135: 0000000 | E135: 000 | F135: 000 | G135: =G136+G143+G153 -> 91524020 | H135: =H136+H143+H153 -> 12326034.21 | I135: 13.46754023
A136: Дошкольное образование | B136: 002 | C136: 0701 | D136: 0000000 | E136: 000 | F136: 000 | G136: =G137+G140 -> 35169541 | H136: =H137+H140 -> 4410629.58 | I136: 12.5410496
A137: Дошкольные образовательные организации | B137: 002 | C137: 0701 | D137: 0261063 | E137: 000 | F137: 000 | G137: =G138 -> 6964000 | H137: =H138 -> 1795213.58 | I137: 25.77848334
A138: Субсидии бюджетным учреждениям на финансовое обеспечение государственного(муниципального) задания на оказание государственных (муниципальных) услуг (выполнение работ) | B138: 002 | C138: 0701 | D138: 0261063 | E138: 611 | F138: 000 | G138: =G139 -> 6964000 | H138: =H139 -> 1795213.58 | I138: 25.77848334
A139: Безвозмездные перечисления государственным и муниципальным организациям | B139: 002 | C139: 0701 | D139: 0261063 | E139: 611 | F139: 241 | G139: 6964000 | H139: 1795213.58 | I139: 25.77848334
A140: Финансовое обеспечение получения дошкольного образования в дошкольных образовательных организациях | B140: 002 | C140: 0701 | D140: 0261471 | E140: 000 | F140: 000 | G140: =G141 -> 28205541 | H140: =H141 -> 2615416 | I140: 9.272702835
A141: Субсидии бюджетным учреждениям на финансовое обеспечение государственного(муниципального) задания на оказание государственных (муниципальных) услуг (выполнение работ) | B141: 002 | C141: 0701 | D141: 0261471 | E141: 611 | F141: 000 | G141: =G142 -> 28205541 | H141: =H142 -> 2615416 | I141: =H141/G141*100 -> 9.272702835
A142: Безвозмездные перечисления государственным и муниципальным организациям | B142: 002 | C142: 0701 | D142: 0261471 | E142: 611 | F142: 241 | G142: 28205541 | H142: 2615416 | I142: 9.272702835
A143: Общее образование | B143: 002 | C143: 0702 | D143: 0000000 | E143: 000 | F143: 000 | G143: =G144+G147+G150 -> 56344479 | H143: =H144+H147+H150 -> 7915404.63 | I143: 14.04823466
A144: Общеобразовательные организации | B144: 002 | C144: 0702 | D144: 0261064 | E144: 000 | F144: 000 | G144: =G145 -> 11980000 | H144: =H145 -> 3277403.75 | I144: 27.35729341
A145: Субсидии бюджетным учреждениям на финансовое обеспечение государственного(муниципального) задания на оказание государственных (муниципальных) услуг (выполнение работ) | B145: 002 | C145: 0702 | D145: 0261064 | E145: 611 | F145: 000 | G145: =G146 -> 11980000 | H145: =H146 -> 3277403.75 | I145: 27.35729341
A146: Безвозмездные перечисления государственным и муниципальным организациям | B146: 002 | C146: 0702 | D146: 0261064 | E146: 611 | F146: 241 | G146: 11980000 | H146: 3277403.75 | I146: 27.35729341
A147: Обеспечение деятельности подведомственных учреждений | B147: 002 | C147: 0702 | D147: 0261066 | E147: 000 | F147: 000 | G147: =G148 -> 15000000 | H147: =H148 -> 1962064.88 | I147: 13.08043253
A148: Субсидии бюджетным учреждениям на финансовое обеспечение государственного(муниципального) задания на оказание государственных (муниципальных) услуг (выполнение работ) | B148: 002 | C148: 0702 | D148: 0261066 | E148: 611 | F148: 000 | G148: =G149 -> 15000000 | H148: =H149 -> 1962064.88 | I148: 13.08043253
A149: Безвозмездные перечисления государственным и муниципальным организациям | B149: 002 | C149: 0702 | D149: 0261066 | E149: 611 | F149: 241 | G149: 15000000 | H149: 1962064.88 | I149: 13.08043253
A150: Финансовое обеспечение деятельности муниципальных общеобразовательных организаций, имеющих государственную аккредитацию негосударственных общеобразовательных организаций в части реализации ими государственного стандарта общего образования | B150: 002 | C150: 0702 | D150: 0261470 | E150: 000 | F150: 000 | G150: =G151 -> 29364479 | H150: =H151 -> 2675936 | I150: 9.11283323
A151: Субсидии бюджетным учреждениям на финансовое обеспечение государственного(муниципального) задания на оказание государственных (муниципальных) услуг (выполнение работ) | B151: 002 | C151: 0702 | D151: 0261470 | E151: 611 | F151: 000 | G151: =G152 -> 29364479 | H151: =H152 -> 2675936 | I151: 9.11283323
A152: Безвозмездные перечисления государственным и муниципальным организациям | B152: 002 | C152: 0702 | D152: 0261470 | E152: 611 | F152: 241 | G152: 29364479 | H152: 2675936 | I152: 9.11283323
A153: Другие вопросы в области образования | B153: 002 | C153: 0709 | D153: 0000000 | E153: 000 | F153: 000 | G153: =G154 -> 10000 | H153: 0 | I153: 0
A154: Мероприятия по профилактике наркомании населения | B154: 002 | C154: 0709 | D154: 0278005 | E154: 000 | F154: 000 | G154: 10000 | H154: 0 | I154: 0
A155: Субсидии бюджетным учреждениям на иные цели | B155: 002 | C155: 0709 | D155: 0278005 | E155: 612 | F155: 000 | G155: 10000 | H155: 0 | I155: 0
A156: Безвозмездные перечисления государственным и муниципальным организациям | B156: 002 | C156: 0709 | D156: 0278005 | E156: 612 | F156: 241 | G156: 10000 | H156: 0 | I156: 0
A157: КУЛЬТУРА И КИНЕМАТОГРАФИЯ | B157: 002 | C157: 0800 | D157: 0000000 | E157: 000 | F157: 000 | G157: =G158 -> 6533000 | H157: =H158 -> 993800 | I157: 15.21200061
A158: Культура | B158: 002 | C158: 0801 | D158: 0000000 | E158: 000 | F158: 000 | G158: =G159+G162 -> 6533000 | H158: =H159+H162 -> 993800 | I158: 15.21200061
A159: Библиотеки | B159: 002 | C159: 0801 | D159: 0281054 | E159: 000 | F159: 000 | G159: =G160 -> 2033000 | H159: =H160 -> 193800 | I159: 9.53271028
A160: Субсидии бюджетным учреждениям на финансовое обеспечение государственного(муниципального) задания на оказание государственных (муниципальных) услуг (выполнение работ) | B160: 002 | C160: 0801 | D160: 0281054 | E160: 611 | F160: 000 | G160: =G161 -> 2033000 | H160: =H161 -> 193800 | I160: 9.53271028
A161: Безвозмездные перечисления государственным и муниципальным организациям | B161: 002 | C161: 0801 | D161: 0281054 | E161: 611 | F161: 241 | G161: 2033000 | H161: 193800 | I161: 9.53271028
A162: Дворцы и дома культуры | B162: 002 | C162: 0801 | D162: 0281059 | E162: 000 | F162: 000 | G162: =G163 -> 4500000 | H162: =H163 -> 800000 | I162: 17.77777778
A163: Субсидии автономным учреждениям на финансовое обеспечение государственного (муниципального) задания на оказание государственных (муниципальных) услуг (выполнение работ) | B163: 002 | C163: 0801 | D163: 0281059 | E163: 621 | F163: 000 | G163: =G164 -> 4500000 | H163: =H164 -> 800000 | I163: 17.77777778
A164: Безвозмездные перечисления государственным и муниципальным организациям | B164: 002 | C164: 0801 | D164: 0281059 | E164: 621 | F164: 241 | G164: 4500000 | H164: 800000 | I164: 17.77777778
A165: СОЦИАЛЬНАЯ ПОЛИТИКА | B165: 002 | C165: 1000 | D165: 0000000 | E165: 000 | F165: 000 | G165: =G166+G170+G177+G189 -> 6604599 | H165: =H166+H170+H177+H189 -> 650699.09 | I165: 9.852211921
A166: Пенсионное обеспечение | B166: 002 | C166: 1001 | D166: 0000000 | E166: 000 | F166: 000 | G166: =G167 -> 365000 | H166: 47813.2 | I166: 13.09950685
A167: Ежемесячная доплата к пенсии муниципальным служащим | B167: 002 | C167: 1001 | D167: 0271651 | E167: 000 | F167: 000 | G167: 365000 | H167: 47813.2 | I167: 13.09950685
A168: Пособия, компенсации, меры социальной поддержки по публичным нормативным обязательствам | B168: 002 | C168: 1001 | D168: 0271651 | E168: 313 | F168: 000 | G168: 365000 | H168: 47813.2 | I168: 13.09950685
A169: Пенсии, пособия , выплачиваемые организациями сектора гос управления | B169: 002 | C169: 1001 | D169: 0271651 | E169: 313 | F169: 263 | G169: 365000 | H169: 47813.2 | I169: 13.09950685
A170: Социальное обеспечение населения | B170: 002 | C170: 1003 | D170: 0000000 | E170: 000 | F170: 000 | G170: =G171+G174 -> 357174 | H170: =H171+H174 -> 0 | I170: 0
A171: Обеспечение сохранности жилых помещений, закрепленных за детьми - сиротами и детьми, оставшимися без попечения родителей | B171: 002 | C171: 1003 | D171: 0271671 | E171: 000 | F171: 000 | G171: =G172 -> 63000 | H171: =H172 -> 0 | I171: 0
A172: Приобретение товаров, работ, услуг в пользу граждан в целях их социального обеспечения | B172: 002 | C172: 1003 | D172: 0271671 | E172: 323 | F172: 000 | G172: =G173 -> 63000 | H172: =H173 -> 0 | I172: 0
A173: Пособия по социальной помощи населению | B173: 002 | C173: 1003 | D173: 0271671 | E173: 323 | F173: 262 | G173: 63000 | H173: 0 | I173: 0
A174: Мероприятия по обеспечению жильем молодых семей г.Фокино | B174: 002 | C174: 1003 | D174: 0278007 | E174: 000 | F174: 000 | G174: =G175 -> 294174 | H174: =H175 -> 0 | I174: 0
A175: Субсидии гражданам на приобретение жилья | B175: 002 | C175: 1003 | D175: 0278007 | E175: 322 | F175: 000 | G175: =G176 -> 294174 | H175: =H176 -> 0 | I175: 0
A176: Пособия по социальной помощи населению | B176: 002 | C176: 1003 | D176: 0278007 | E176: 322 | F176: 262 | G176: 294174 | H176: 0 | I176: 0
A177: Охрана семьи и детства | B177: 002 | C177: 1004 | D177: 0000000 | E177: 000 | F177: 000 | G177: =G178+G181+G186 -> 5059925 | H177: =H178+H181+H186 -> 516179.11 | I177: 10.20131939
A178: Обеспечение предоставления жилых помещений детям-сиротам и детям, оставшимся без попечения родителей,лицам из их числа по договорам найма специализированных жилых помещений | B178: 002 | C178: 1004 | D178: 0271670 | E178: 000 | F178: 000 | G178: =G179 -> 886050 | H178: =H179 -> 0 | I178: 0
A179: Приобретение товаров, работ, услуг в пользу граждан в целях их социального обеспечения | B179: 002 | C179: 1004 | D179: 0271670 | E179: 323 | F179: 000 | G179: =G180 -> 886050 | H179: =H180 -> 0 | I179: 0
A180: Увеличение стоимости основных средств | B180: 002 | C180: 1004 | D180: 0271670 | E180: 323 | F180: 310 | G180: 886050 | H180: 0 | I180: 0
A181: Организация и осуществление деятельности по опеке и попечительству, выплата ежемесячных денежных средств на содержание и проезд ребенка, переданного на воспитание в семью опекуна (попечителя), приемную семью, вознаграждения приемным родителям | B181: 002 | C181: 1004 | D181: 0271672 | E181: 000 | F181: 000 | G181: =G182+G184 -> 4000165 | H181: =H182+H184 -> 516179.11 | I181: 12.90394546
A182: Иные закупки товаров, работ и услуг для государственных(муниципальных) нужд | B182: 002 | C182: 1004 | D182: 0271672 | E182: 240 | F182: 000 | G182: =G183 -> 850855 | H182: =H183 -> 79717.11 | I182: 9.369059358
A183: Прочие работы, услуги | B183: 002 | C183: 1004 | D183: 0271672 | E183: 240 | F183: 226 | G183: 850855 | H183: 79717.11 | I183: 9.369059358
A184: Пособия, компенсации, меры социальной поддержки по публичным нормативным обязательствам | B184: 002 | C184: 1004 | D184: 0271672 | E184: 313 | F184: 000 | G184: =G185 -> 3149310 | H184: =H185 -> 436462 | I184: 13.85897228
A185: Пособия по социальной помощи населению | B185: 002 | C185: 1004 | D185: 0271672 | E185: 313 | F185: 262 | G185: 3149310 | H185: 436462 | I185: 13.85897228
A186: Выплата единовременного пособия при всех формах устройства детей, лишенных родительского попечения, в семью | B186: 002 | C186: 1004 | D186: 0275131 | E186: 000 | F186: 000 | G186: =G187 -> 173710 | H186: =H187 -> 0 | I186: 0
A187: Пособия, компенсации, меры социальной поддержки по публичным нормативным обязательствам | B187: 002 | C187: 1004 | D187: 0275131 | E187: 313 | F187: 000 | G187: =G188 -> 173710 | H187: =H188 -> 0 | I187: 0
A188: Пособия по социальной помощи населению | B188: 002 | C188: 1004 | D188: 0275131 | E188: 313 | F188: 262 | G188: 173710 | H188: 0 | I188: 0
A189: Другие вопросы в области социальной политики | B189: 002 | C189: 1006 | D189: 0000000 | E189: 000 | F189: 000 | G189: =G190+G198 -> 822500 | H189: =H190+H198 -> 86706.78 | I189: 10.54185775
A190: Обеспечение деятельности по профилактике безнадзорности и правонарушений несовершеннолетних, административных комиссий и определения перечня должностных лиц органов местного самоуправления, уполномоченных составлять протоколы об административных правонарушениях | B190: 002 | C190: 1006 | D190: 0211202 | E190: 000 | F190: 000 | G190: =G191+G195 -> 329000 | H190: =H191+H195 -> 34336.26 | I190: 10.43655319
A191: Расходы на выплаты персоналу государственных (муниципальных) органов | B191: 002 | C191: 1006 | D191: 0211202 | E191: 120 | F191: 000 | G191: =G192+G193+G194 -> 285999 | H191: =H192+H193+H194 -> 33417.92 | I191: 11.68462827
A192: Заработная плата | B192: 002 | C192: 1006 | D192: 0211202 | E192: 120 | F192: 211 | G192: 219200 | H192: 19558 | I192: 8.922445255
A193: Прочие выплаты | B193: 002 | C193: 1006 | D193: 0211202 | E193: 120 | F193: 212 | G193: 600 | H193: 50 | I193: 8.333333333
A194: Начисления на выплаты по оплате труда | B194: 002 | C194: 1006 | D194: 0211202 | E194: 120 | F194: 213 | G194: 66199 | H194: 13809.92 | I194: 20.86122147
A195: Иные закупки товаров, работ и услуг для государственных(муниципальных) нужд | B195: 002 | C195: 1006 | D195: 0211202 | E195: 240 | F195: 000 | G195: =G196+G197 -> 43001 | H195: =H196+H197 -> 918.34 | I195: 2.135624753
A196: Услуги связи | B196: 002 | C196: 1006 | D196: 0211202 | E196: 240 | F196: 221 | G196: 18000 | H196: 918.34 | I196: 5.101888889
A197: Увеличение стоимости материальных запасов | B197: 002 | C197: 1006 | D197: 0211202 | E197: 240 | F197: 340 | G197: 25001 | H197: 0 | I197: 0
A198: Организация и осуществление деятельности по опеке и попечительству, выплата ежемесячных денежных средств на содержание и проезд ребенка, переданного на воспитание в семью опекуна (попечителя), приемную семью, вознаграждения приемным родителям | B198: 002 | C198: 1006 | D198: 0271672 | E198: 000 | F198: 000 | G198: =G199+G203 -> 493500 | H198: =H199+H203 -> 52370.52 | I198: 10.61206079
A199: Расходы на выплаты персоналу государственных (муниципальных) органов | B199: 002 | C199: 1006 | D199: 0271672 | E199: 120 | F199: 000 | G199: =G200+G201+G202 -> 401133 | H199: =H200+H201+H202 -> 51453.13 | I199: 12.82695016
A200: Заработная плата | B200: 002 | C200: 1006 | D200: 0271672 | E200: 120 | F200: 211 | G200: 307629 | H200: 35014.44 | I200: 11.38203485
... 112 more rows
